fUSD/lending_fUSD_20251231
["ID","MTS","AMOUNT","RATE_DAILY","PERIOD"]
[400225680,1767205036383,200.0,0.0004325,120]
[400225681,1767205044799,200.0,0.0004325,120]
[400225682,1767205045428,207.4,0.0004325,120]
[400225683,1767205046052,215.0738,0.0004325,120]
[400225684,1767205046683,223.0315306,0.0004325,120]
[400225685,1767205047276,231.28369723,0.0004325,120]
[400225686,1767205047517,151.0,0.0004325,50]
[400225687,1767205047805,152.090919,0.0004325,50]
[400225688,1767205049877,151.0,0.0004325,50]
[400225689,1767205050201,151.0,0.0004325,50]
[400225690,1767205050501,151.0,0.0004325,50]
[400225691,1767205050817,151.0,0.0004325,50]
[400225692,1767205051106,151.0,0.0004325,50]
[400225693,1767205051401,159.904672,0.0004325,50]
[400225694,1767205074826,200.91117757,0.00043235,120]
[400225695,1767205178139,1000.0,0.00043235,120]
[400225696,1767205178369,1000.0,0.00043235,120]
[400225697,1767205178602,536.74944723,0.00043235,120]
[400225698,1767205259791,-300.0,0.00011429,2]
[400225699,1767205259814,-300.0,0.00011429,2]
[400225700,1767205259837,-292.0,0.00011429,2]
[400225701,1767205260855,500.0,0.00043235,120]
[400225702,1767205264179,472.51005849,0.00043235,30]
[400225703,1767205282896,10000.0,0.00014254,5]
[400225704,1767205301011,10000.0,0.00015,7]
[400225705,1767205324032,10000.0,0.00018,30]
[400225706,1767205329540,236.1987054,0.00043235,120]
[400225707,1767205338420,203.85604126,0.00043235,120]
[400225708,1767205424133,1255.0,0.00043237,120]
[400225709,1767205430046,160.0,0.00043237,30]
[400225710,1767205430114,160.0,0.00043237,30]
[400225711,1767205430188,160.0,0.00043237,30]
[400225712,1767205430279,160.0,0.00043237,30]
[400225713,1767205430352,160.0,0.00043237,30]
[400225714,1767205430419,160.0,0.00043237,30]
[400225715,1767205430641,160.0,0.00043237,30]
[400225716,1767205430680,160.0,0.00043237,30]
[400225717,1767205430720,160.0,0.00043237,30]
[400225718,1767205430778,160.0,0.00043237,30]
[400225719,1767205430846,160.0,0.00043237,30]
[400225720,1767205431116,206.3,0.00043237,30]
[400225721,1767205431161,160.0,0.00043237,30]
[400225722,1767205431200,160.0,0.00043237,30]
[400225723,1767205431237,160.0,0.00043237,30]
[400225724,1767205431273,160.0,0.00043237,30]
[400225725,1767205431311,160.0,0.00043237,30]
[400225726,1767205431349,160.0,0.00043237,30]
[400225727,1767205431425,160.0,0.00043237,30]
[400225728,1767205431496,160.0,0.00043237,30]
[400225729,1767205431566,160.0,0.00043237,30]
[400225730,1767205431635,160.0,0.00043237,30]
[400225731,1767205431699,160.0,0.00043237,30]
[400225732,1767205431767,206.3,0.00043237,30]
[400225733,1767205440310,2167.74273238,0.00043237,120]
[400225734,1767205508772,838.31226151,0.00043237,90]
[400225735,1767205508883,479.11780083,0.00043237,120]
[400225736,1767205511003,999.999995,0.00043237,120]
[400225737,1767205512799,40075.16361648,0.00043237,30]
[400225738,1767205513093,487.71627364,0.00043237,91]
[400225739,1767205513215,867.10411667,0.00043237,60]
[400225740,1767205517813,261.91040043,0.00043237,30]
[400225741,1767205517855,280.22223172,0.00043237,120]
[400225742,1767205519787,1101.75898327,0.00043237,120]
[400225743,1767205520651,165.11687285,0.00043237,120]
[400225744,1767205525248,318.91482635,0.00043237,120]
[400225745,1767205528272,988.62404328,0.00043237,30]
[400225746,1767205529047,340.1355895,0.00043237,30]
[400225747,1767205531929,658.87934001,0.00043237,120]
[400225748,1767205537437,660.7227901,0.00043237,120]
[400225749,1767205541017,231.15541853,0.00043237,120]
[400225750,1767205541853,43555.41259786,0.00043237,120]
[400225751,1767205543337,620.24267856,0.00043237,120]
[400225752,1767205543599,755.8509264,0.00043237,120]
[400225753,1767205546042,922.40779851,0.00043237,120]
[400225754,1767205546242,157.80382854,0.00043237,120]
[400225755,1767205556442,968.1427876,0.00043237,120]
[400225756,1767205558097,454.1035297,0.00043237,120]
[400225757,1767205559479,468.16436483,0.00043237,30]
[400225758,1767205559805,551.31917535,0.00043237,90]
[400225759,1767205561489,500.0,0.00043237,120]
[400225760,1767205564528,205.02209609,0.00043237,120]
[400225761,1767205566180,674.80653942,0.00043237,120]
[400225762,1767205567700,227.06372373,0.00043237,60]
[400225763,1767205568163,609.81718762,0.00043237,120]
[400225764,1767205568761,207.78599499,0.00043237,120]
[400225765,1767205571085,220.65823521,0.00043237,30]
[400225766,1767205571132,163269.00977105,0.00043237,120]
[400225767,1767205571274,322.38306556,0.00043237,30]
[400225768,1767205571424,291.08151854,0.00043237,60]
[400225769,1767205572230,160.77839991,0.00043237,120]
[400225770,1767205574062,51532.58397496,0.00043237,120]
[400225771,1767205577274,192.30548989,0.00043237,120]
[400225772,1767205578120,154.97231363,0.00043237,120]
[400225773,1767205579102,753.18960792,0.00043237,30]
[400225774,1767205580368,-203.47415908,0.00011,2]
[400225775,1767205582952,-211.45180362,0.00011,2]
[400225776,1767205584525,-264.31997141,0.00011,2]
[400225777,1767205596784,498.60729515,0.00043237,120]
[400225778,1767205599779,763.75323233,0.00043237,120]
[400225779,1767205601267,319.41641949,0.00043237,30]
[400225780,1767205602711,999.0,0.00012094,3]
[400225781,1767205610110,440.24158448,0.00043237,120]
[400225782,1767205610771,493.77566,0.00043237,75]
[400225783,1767205611144,275.80523708,0.00043237,30]
[400225784,1767205617147,302.09330058,0.00043237,120]
[400225785,1767205621842,363.16280152,0.00043237,30]
[400225787,1767205629173,691.51365472,0.00043237,120]
[400225788,1767205635665,50000.0,0.00043237,30]
[400225791,1767205641023,50000.0,0.00043237,31]
[400225792,1767205643986,737.71237505,0.00043237,120]
[400225793,1767205645185,50000.0,0.00043237,32]
[400225796,1767205649230,1021.09020993,0.00043237,120]
[400225797,1767205650400,50000.0,0.00043237,33]
[400225798,1767205654182,1247.74252046,0.00043237,120]
[400225799,1767205656540,50000.0,0.00043237,34]
[400225800,1767205658987,548.60003446,0.00043237,120]
[400225801,1767205660071,287.52724192,0.00043237,120]
[400225802,1767205661318,921.83962796,0.00043237,120]
[400225803,1767205662248,595.11552884,0.00043237,120]
[400225804,1767205663074,200.32139812,0.00043237,30]
[400225805,1767205663473,269.78585584,0.00043237,120]
[400225806,1767205664753,335.93022108,0.00043237,120]
[400225807,1767205668925,909.76256841,0.00013,15]
[400225808,1767205669163,264.23815398,0.00043237,120]
[400225809,1767205669303,23573.07858887,0.00043237,120]
[400225810,1767205673328,339.03294874,0.00043237,30]
[400225811,1767205673463,1142.98724606,0.00043237,120]
[400225812,1767205675092,733.93124029,0.00043237,30]
[400225813,1767205677819,413.39263971,0.00043237,120]
[400225814,1767205679666,154.10944259,0.00043237,30]
[400225815,1767205680791,740.76211365,0.00043237,120]
[400225816,1767205682096,539.36396786,0.00043237,120]
[400225817,1767205682200,611.36209194,0.00043237,30]
[400225818,1767205695865,671.69419133,0.00043237,120]
[400225819,1767205700452,1067.07898499,0.00043237,120]
[400225820,1767205701106,1083.85929098,0.00043237,120]
[400225821,1767205701486,598.79662971,0.00043237,120]
[400225822,1767205702761,266.91366893,0.00043237,120]
[400225824,1767205705091,373.01365955,0.00043237,33]
[400225825,1767205705553,313.21596756,0.00043237,30]
[400225826,1767205705600,298.34576632,0.00043237,120]
[400225827,1767205705852,209.8279247,0.00043237,120]
[400225828,1767205705898,405.41657087,0.00043237,120]
[400225829,1767205705940,413.63728021,0.00043237,30]
[400225830,1767205706151,337.6432064,0.00043237,30]
[400225831,1767205706488,283.17813448,0.00043237,30]
[400225832,1767205706875,207.13184903,0.00043237,30]
[400225833,1767205706918,827.81214846,0.00043237,60]
[400225834,1767205706961,200.79582474,0.00043237,30]
[400225835,1767205707290,216.10027349,0.00043237,31]
[400225836,1767205709519,306.3427422,0.00043237,30]
[400225837,1767205710590,285.80125995,0.00043237,30]
[400225838,1767205710681,345.29420519,0.00043237,30]
[400225839,1767205711246,770.25987039,0.00043237,90]
[400225840,1767205712745,1061.77279306,0.00043237,120]
[400225841,1767205713018,211.60305166,0.00043237,120]
[400225843,1767205713839,700.2552978,0.00043237,120]
[400225844,1767205714420,180.36817148,0.00043237,120]
[400225845,1767205715064,674.83030583,0.00043237,120]
[400225846,1767205715118,550.09273922,0.00043237,120]
[400225847,1767205715886,1066.90132643,0.00043237,120]
[400225848,1767205716099,811.41915904,0.00043237,120]
[400225849,1767205718357,217.39556369,0.00043237,30]
[400225850,1767205718745,870.19690456,0.00043237,120]
[400225851,1767205718887,507.78226937,0.00043237,120]
[400225852,1767205719684,871.85323377,0.00043237,120]
[400225853,1767205720449,196.48439153,0.00043237,120]
[400225854,1767205720756,458.8417334,0.00043237,120]
[400225855,1767205720799,164.0656252,0.00043237,30]
[400225856,1767205720985,662.37094636,0.00043237,120]
[400225857,1767205721220,549.32930994,0.00043237,120]
[400225858,1767205721902,274.13857319,0.00043237,120]
[400225859,1767205722440,151.30376002,0.00043237,120]
[400225860,1767205722640,1020.05503869,0.00043237,120]
[400225861,1767205722718,868.0474231,0.00043237,120]
[400225862,1767205722794,332.49167925,0.00043237,120]
[400225863,1767205723560,237.1501373,0.00043237,120]
[400225864,1767205725744,716.07755048,0.00043237,120]
[400225865,1767205725784,316.04603004,0.0003,120]
[400225866,1767205726185,1459.92262617,0.00043237,120]
[400225867,1767205726445,259.90651506,0.0003,120]
[400225868,1767205726491,1419.88165825,0.00043237,30]
[400225869,1767205726950,289.5563007,0.00043237,30]
[400225870,1767205738060,50000.0,0.00043237,35]
[400225871,1767205743658,50000.0,0.00043237,36]
[400225872,1767205748288,50000.0,0.00043237,37]
[400225874,1767205752731,50000.0,0.00043237,38]
[400225875,1767205757874,50000.0,0.00043237,39]
[400225988,1767205774129,50000.0,0.00043237,40]
[400225989,1767205775287,-255.0,0.00011,2]
[400225990,1767205792473,22000.0,0.00043237,41]
[400225998,1767205831290,-1195.98280455,0.00010999,2]
[400226000,1767205831302,-4.01719545,0.00010999,2]
[400226001,1767205831312,-240.0,0.00010999,2]
[400226002,1767205831322,-300.0,0.00010999,2]
[400226003,1767205831332,-1292.02356161,0.00011,2]
[400226004,1767205831347,-405.81277303,0.00011,2]
[400226005,1767205831358,-6771.4396905,0.00011,2]
[400226006,1767205831368,-300.0,0.00011139,2]
[400226007,1767205831379,-300.0,0.00011139,2]
[400226008,1767205831388,-381.02446444,0.00011139,2]
[400226009,1767205831398,-250.0,0.0001114,2]
[400226010,1767205831408,-300.0,0.00011278,2]
[400226011,1767205831417,-181.96983201,0.00011279,2]
[400226012,1767205831427,-387.28583908,0.00011295,2]
[400226013,1767205831437,-300.0,0.00011407,2]
[400226014,1767205831447,-300.0,0.00011407,2]
[400226015,1767205831457,-1200.0,0.00011408,2]
[400226016,1767205831466,-202.37378735,0.0001143,2]
[400226017,1767205831476,-202.37378735,0.0001143,2]
[400226018,1767205831486,-500.0,0.00011491,2]
[400226019,1767205831496,-500.0,0.00011491,2]
[400226020,1767205831505,-194.42791301,0.00011491,2]
[400226021,1767205831515,-150.0,0.00011499,2]
[400226022,1767205831524,-5000.0,0.000115,2]
[400226023,1767205831535,-9999.99,0.000115,2]
[400226024,1767205831547,-150.99,0.000115,2]
[400226025,1767205831557,-6280.55,0.000115,2]
[400226026,1767205831566,-200.0,0.00011862,2]
[400226027,1767205831576,-207.4,0.00011862,2]
[400226029,1767205831586,-215.0738,0.00011862,2]
[400226031,1767205831596,-223.0315306,0.00011862,2]
[400226033,1767205831606,-231.28369723,0.00011862,2]
[400226036,1767205831618,-239.84119403,0.00011862,2]
[400226038,1767205831628,-248.71531821,0.00011862,2]
[400226040,1767205831639,-257.91778498,0.00011862,2]
[400226042,1767205831648,-267.46074303,0.00011862,2]
[400226044,1767205831658,-277.35679052,0.00011862,2]
[400226046,1767205831668,-4269.59,0.00011899,2]
[400226048,1767205831678,-500.0,0.00011976,2]
[400226051,1767205831689,-5000.0,0.00012,2]
[400226054,1767205831699,-2613.25,0.0001203,2]
[400226056,1767205831709,-6986.65473734,0.00012057,2]
[400226058,1767205831726,-899.86519061,0.00012057,2]
[400226060,1767205831738,-4813.66949295,0.00012057,2]
[400226061,1767205831747,-202.37378735,0.00012067,2]
[400226062,1767205831756,-536.86230832,0.00012067,2]
[400226063,1767205831766,-300.0,0.00012099,2]
[400226064,1767205831776,-1680.0,0.00012099,2]
[400226065,1767205831786,-250.0,0.000121,2]
[400226066,1767205831795,-420.0,0.0001239,2]
[400226067,1767205831804,-5000.0,0.000125,2]
[400226068,1767205831814,-420.0,0.0001253,2]
[400226069,1767205831824,-420.0,0.0001253,2]
[400226070,1767205831834,-255.0,0.00012568,2]
[400226071,1767205831844,-5707.84403139,0.00012582,2]
[400226072,1767205831855,-3317.75206066,0.00012582,2]
[400226073,1767205831867,-3010.04390795,0.00012582,2]
[400226074,1767205831877,-5000.0,0.00013,2]
[400226075,1767205831886,-197.93746066,0.00013049,2]
[400226076,1767205831896,-500.0,0.00013049,2]
[400226077,1767205831906,-514.45348336,0.00013049,2]
[400226078,1767205831916,-365.93996206,0.00013049,2]
[400226079,1767205831926,-500.0,0.00013049,2]
[400226080,1767205831935,-460.20112713,0.00013049,2]
[400226081,1767205831945,-366.84006854,0.0001305,2]
[400226082,1767205831955,-227.1,0.00013106,2]
[400226083,1767205831965,-150.0,0.00013151,2]
[400226084,1767205831975,-500.0,0.00013192,2]
[400226085,1767205831984,-150.0,0.00013192,2]
[400226086,1767205831994,-500.0,0.00013192,2]
[400226087,1767205832005,-150.0,0.00013206,2]
[400226088,1767205832016,-287.61899177,0.00013231,2]
[400226089,1767205832026,-154.84728341,0.00013247,2]
[400226090,1767205832042,-345.15271659,0.00013247,2]
[400226091,1767205832052,-150.0,0.00013247,2]
[400226092,1767205832062,-368.93177795,0.00013247,2]
[400226093,1767205832073,-231.06822205,0.00013247,2]
[400226094,1767205832083,-200.0,0.00013261,2]
[400226095,1767205832093,-151.0,0.00013276,2]
[400226096,1767205832103,-151.0,0.00013276,2]
[400226097,1767205832113,-151.0,0.00013276,2]
[400226098,1767205832123,-151.0,0.00013276,2]
[400226099,1767205832133,-151.0,0.00013276,2]
[400226100,1767205832143,-151.0,0.00013276,2]
[400226101,1767205832153,-151.0,0.00013276,2]
[400226102,1767205832163,-151.0,0.00013276,2]
[400226103,1767205832173,-151.0,0.00013276,2]
[400226104,1767205832184,-151.0,0.00013276,2]
[400226105,1767205832194,-151.0,0.00013276,2]
[400226106,1767205832204,-151.0,0.00013276,2]
[400226107,1767205832214,-151.0,0.00013276,2]
[400226108,1767205832224,-151.0,0.00013276,2]
[400226109,1767205832235,-151.0,0.00013276,2]
[400226110,1767205832245,-4514.93177795,0.00013284,2]
[400226111,1767205832259,-1932.64807024,0.00013284,2]
[400226112,1767205832270,-521.09808576,0.00013284,2]
[400226113,1767205832281,-255.0437,0.00013284,2]
[400226114,1767205832293,-12176.45836605,0.00013284,2]
[400226115,1767205832303,-215.72,0.00013295,2]
[400226116,1767205832313,-500.0,0.00013302,2]
[400226117,1767205832323,-150.0,0.00013302,2]
[400226118,1767205832333,-2351.0,0.00013309,2]
[400226119,1767205832343,-910.5,0.00013311,2]
[400226120,1767205832352,-500.0,0.00013356,2]
[400226121,1767205832362,-225.0,0.00013356,2]
[400226122,1767205832371,-500.0,0.00013411,2]
[400226123,1767205832380,-150.0,0.00013425,2]
[400226124,1767205832391,-500.0,0.00013425,2]
[400226125,1767205832400,-208.39296676,0.00013466,2]
[400226126,1767205832410,-151.24368232,0.0001348,2]
[400226127,1767205832421,-500.0,0.0001348,2]
[400226128,1767205832431,-5000.0,0.000135,2]
[400226129,1767205832441,-500.0,0.00013535,2]
[400226130,1767205832450,-500.0,0.00013589,2]
[400226131,1767205832460,-587.0,0.00013611,2]
[400226132,1767205832471,-500.0,0.00013644,2]
[400226133,1767205832489,-1000.0,0.00013699,2]
[400226134,1767205832498,-500.0,0.00013699,2]
[400226135,1767205832508,-500.0,0.00013699,2]
[400226136,1767205832518,-500.0,0.00013699,2]
[400226137,1767205832528,-500.0,0.00013699,2]
[400226138,1767205832541,-500.0,0.00013699,2]
[400226139,1767205832550,-488.99777054,0.00013699,2]
[400226140,1767205832560,-206.82454977,0.00013699,2]
[400226141,1767205832570,-500.0,0.00013699,2]
[400226142,1767205832581,-500.0,0.00013699,2]
[400226143,1767205832592,-433.0,0.00013741,2]
[400226144,1767205832602,-432.0,0.00013748,2]
[400226145,1767205832615,-1264.0,0.00013748,2]
[400226146,1767205832625,-1199.0,0.00013748,2]
[400226147,1767205832635,-913.0,0.00013748,2]
[400226148,1767205832644,-4812.0,0.00013748,2]
[400226149,1767205832654,-450.0,0.00013754,2]
[400226150,1767205832665,-454.0,0.00013763,2]
[400226151,1767205832675,-587.0,0.00013763,2]
[400226152,1767205832685,-790.74255944,0.00013785,2]
[400226153,1767205832695,-4239.57537948,0.00013785,2]
[400226154,1767205832705,-2475.5391,0.0001389,2]
[400226155,1767205832715,-111865.77786263,0.0001399,2]
[400226156,1767205832724,-5000.0,0.00014,2]
[400226157,1767205832734,-159.41,0.00014347,2]
[400226158,1767205832744,-10289.7991648,0.0001439,2]
[400226159,1767205832754,-5000.0,0.000145,2]
[400226160,1767205832763,-250.0,0.00014535,2]
[400226161,1767205832773,-298.26089446,0.000146,2]
[400226162,1767205832783,-3292.0,0.0001464,2]
[400226163,1767205832793,-150.0,0.0001465,2]
[400226164,1767205832803,-500.0,0.0001465,2]
[400226165,1767205832812,-150.0,0.0001465,2]
[400226166,1767205832822,-500.0,0.0001465,2]
[400226167,1767205832832,-14745.58,0.00014701,2]
[400226168,1767205832842,-150.0,0.00014705,2]
[400226169,1767205832851,-500.0,0.00014705,2]
[400226170,1767205832861,-150.0,0.00014705,2]
[400226171,1767205832870,-500.0,0.00014705,2]
[400226172,1767205832880,-500.0,0.0001476,2]
[400226173,1767205832889,-203.35414423,0.0001476,2]
[400226174,1767205832899,-500.0,0.0001476,2]
[400226175,1767205832910,-200.0,0.00014793,2]
[400226176,1767205832919,-500.0,0.00014814,2]
[400226177,1767205832934,-500.0,0.00014814,2]
[400226178,1767205832945,-500.0,0.00014869,2]
[400226179,1767205832955,-500.0,0.00014869,2]
[400226180,1767205832965,-500.0,0.00014924,2]
[400226181,1767205832975,-430.14216988,0.00014924,2]
[400226182,1767205832987,-11822.31,0.00014924,2]
[400226183,1767205833009,-1000.0,0.00014938,2]
[400226184,1767205833019,-300.0,0.00014979,2]
[400226185,1767205833030,-5014.92,0.00014999,2]
[400226186,1767205833040,-5000.0,0.00015,2]
[400226187,1767205833050,-2043.16270644,0.00015,2]
[400226188,1767205833061,-5941.81705286,0.00015,2]
[400226189,1767205833071,-22942.37968616,0.00015,2]
[400226190,1767205833082,-736.0,0.00015018,2]
[400226191,1767205833092,-158.2378,0.00015046,2]
[400226192,1767205833102,-3680.7865,0.00015046,2]
[400226193,1767205833112,-42328.1641,0.00015046,2]
[400226194,1767205833122,-167.0104,0.00015046,2]
[400226195,1767205833132,-856.06,0.00015068,2]
[400226196,1767205833143,-1104.12,0.00015096,2]
[400226197,1767205833153,-823.0,0.00015118,2]
[400226198,1767205833162,-162.80268362,0.00015288,2]
[400226199,1767205833172,-150.0,0.00015288,2]
[400226200,1767205833182,-150.0,0.00015288,2]
[400226201,1767205833191,-159.79234636,0.00015288,2]
[400226202,1767205833201,-153.50138107,0.00015288,2]
[400226203,1767205833211,-150.0,0.00015288,2]
[400226204,1767205833221,-150.0,0.00015288,2]
[400226205,1767205833231,-153.00859182,0.00015288,2]
[400226206,1767205833242,-150.0,0.00015288,2]
[400226207,1767205833252,-1517.64,0.000153,2]
[400226208,1767205833263,-171.03,0.0001537,2]
[400226209,1767205833272,-171.03,0.0001537,2]
[400226210,1767205833282,-171.03,0.0001537,2]
[400226211,1767205833292,-171.03,0.0001537,2]
[400226212,1767205833302,-171.03,0.0001537,2]
[400226213,1767205833311,-171.03,0.0001537,2]
[400226214,1767205833320,-171.03,0.0001537,2]
[400226215,1767205833331,-151.0,0.00015391,2]
[400226216,1767205833341,-151.0,0.00015391,2]
[400226217,1767205833351,-831.0,0.000154,2]
[400226218,1767205833361,-831.0,0.000154,2]
[400226219,1767205833370,-831.0,0.000154,2]
[400226220,1767205833380,-506.50076921,0.000154,2]
[400226221,1767205833390,-151.0,0.0001542,2]
[400226222,1767205833399,-151.0,0.0001542,2]
[400226223,1767205833410,-151.0,0.00015425,2]
[400226224,1767205833419,-151.0,0.00015425,2]
[400226225,1767205833429,-151.0,0.00015475,2]
[400226226,1767205833439,-151.0,0.00015475,2]
[400226227,1767205833448,-5000.0,0.000155,2]
[400226228,1767205833458,-831.0,0.0001572,2]
[400226229,1767205833467,-4446.72127418,0.00015722,2]
[400226230,1767205833477,-1558.43866489,0.00015804,2]
[400226231,1767205833487,-2045.05502519,0.00015807,2]
[400226232,1767205833497,-151.83594907,0.00015822,2]
[400226233,1767205833506,-481.83,0.00015841,2]
[400226234,1767205833516,-4446.72127418,0.00015853,2]
[400226235,1767205833526,-491.89544827,0.00015863,2]
[400226236,1767205833538,-151.0,0.0001587,2]
[400226237,1767205833548,-500.0,0.00015872,2]
[400226238,1767205833557,-500.0,0.00015872,2]
[400226239,1767205833567,-500.0,0.00015872,2]
[400226240,1767205833578,-500.0,0.00015872,2]
[400226241,1767205833587,-500.0,0.00015872,2]
[400226242,1767205833597,-500.0,0.00015872,2]
[400226243,1767205833607,-4185.0,0.00015872,2]
[400226244,1767205833618,-630097.96023717,0.00015873,2]
[400226245,1767205833776,-2744.89508224,0.00015873,2]
[400226246,1767205833787,-67734.2666134,0.00015873,2]
[400226247,1767205833799,-75266.37241802,0.00015873,2]
[400226248,1767205833811,-1254.41808677,0.00015873,2]
[400226249,1767205833822,-641.28142672,0.00015873,2]
[400226250,1767205833842,-418.24853192,0.00015873,2]
[400226251,1767205833854,-522.04790989,0.00015873,2]
[400226252,1767205833865,-40429.78290757,0.00015873,2]
[400226265,1767205837382,-465.16280073,0.00013748,2]
[400226266,1767205837394,-864.65219927,0.00013748,2]
[400226267,1767205837403,-103600.27620259,0.00015873,2]
[400226268,1767205837542,-159.7999999,0.00015873,2]
[400226269,1767205837554,-77130.65058381,0.00015873,2]
[400226270,1767205837564,-169.51031729,0.0001594,2]
[400226271,1767205837573,-1609.19539356,0.0001594,2]
[400226272,1767205837583,-309.29654756,0.00015969,2]
[400226273,1767205837592,-500.0,0.00015973,2]
[400226274,1767205837602,-500.0,0.00015973,2]
[400226275,1767205837612,-500.0,0.00015973,2]
[400226276,1767205837621,-500.0,0.00015973,2]
[400226277,1767205837631,-500.0,0.00015973,2]
[400226278,1767205837640,-500.0,0.00015973,2]
[400226279,1767205837651,-500.0,0.00015973,2]
[400226280,1767205837660,-500.0,0.00015973,2]
[400226298,1767205837826,-500.0,0.00015973,2]
[400226300,1767205837837,-500.0,0.00015973,2]
[400226303,1767205837847,-500.0,0.00015973,2]
[400226305,1767205837856,-500.0,0.00015973,2]
[400226307,1767205837865,-500.0,0.00015973,2]
[400226309,1767205837874,-500.0,0.00015973,2]
[400226311,1767205837887,-500.0,0.00015973,2]
[400226313,1767205837896,-505.30939977,0.00015973,2]
[400226315,1767205837905,-217.14278584,0.00015973,2]
[400226317,1767205837915,-500.0,0.00015973,2]
[400226319,1767205837924,-505.8640833,0.00015973,2]
[400226321,1767205837935,-500.0,0.00015973,2]
[400226323,1767205837944,-502.92982036,0.00015973,2]
[400226325,1767205837953,-500.0,0.00015973,2]
[400226327,1767205837963,-500.0,0.00015973,2]
[400226329,1767205837972,-500.0,0.00015973,2]
[400226331,1767205837982,-500.0,0.00015973,2]
[400226333,1767205837991,-500.0,0.00015973,2]
[400226335,1767205838000,-500.0,0.00015973,2]
[400226337,1767205838010,-500.0,0.00015973,2]
[400226339,1767205838019,-500.0,0.00015973,2]
[400226341,1767205838028,-500.0,0.00015973,2]
[400226343,1767205838040,-171.03,0.00015978,2]
[400226345,1767205838050,-4446.72127418,0.00015984,2]
[400226347,1767205838060,-491.89544827,0.0001599,2]
[400226349,1767205838070,-151.0,0.00015997,2]
[400226351,1767205838080,-151.0,0.00015997,2]
[400226353,1767205838090,-278.36328388,0.00015997,2]
[400226355,1767205838100,-5000.0,0.00016,2]
[400226357,1767205838110,-44350.84772557,0.00016,2]
[400226361,1767205838131,-440.45466359,0.00016,2]
[400226363,1767205838142,-2890.27613519,0.00016,2]
[400226365,1767205838154,-852.51481247,0.00016,2]
[400226367,1767205838166,-427.56333275,0.00016,2]
[400226370,1767205838182,-1303.50473556,0.00016,2]
[400226511,1767205839464,-796.2658854,0.00013785,2]
[400226513,1767205839474,-1704.67800323,0.00016,2]
[400226519,1767205839519,-1866.07550372,0.00016,2]
[400226521,1767205839531,-32460.18634,0.00016,2]
[400226527,1767205839576,-7301.2,0.00016,2]
[400226545,1767205839689,-330.67525639,0.00016,2]
[400226548,1767205839702,-322.59780499,0.00016,2]
[400226550,1767205839714,-2191.73975816,0.00016,2]
[400226552,1767205839725,-503.48324234,0.00016,2]
[400226554,1767205839736,-390.72469552,0.00016,2]
[400226557,1767205839751,-872.14,0.00016,2]
[400226559,1767205839763,-19390.51320842,0.00016,2]
[400226561,1767205839772,-2469859.92548859,0.00016,4]
[400226563,1767205839782,-831.0,0.0001604,2]
[400226565,1767205839791,-1000.0,0.000161,2]
[400226567,1767205839801,-4609.0,0.00016104,2]
[400226569,1767205839811,-4446.72127418,0.00016115,2]
[400226572,1767205839822,-169.51031725,0.00016132,2]
[400226573,1767205839831,-150.0,0.00016137,2]
[400226576,1767205839841,-171.03,0.00016192,2]
[400226577,1767205839850,-342.06,0.00016192,2]
[400226579,1767205839859,-171.03,0.00016192,2]